bitfinex/quotes_SOLUSD_20250123
["timestamp","ask_amount","ask_price","bid_price","bid_amount"]
[1737643721358,37.78695147,254.12,254.02,37.78695147]
[1737643722155,14.7697,254.18,253.99,37.78695147]
[1737643722156,37.78695147,254.09,253.99,37.78695147]
[1737643722360,37.78695147,254.06,253.96,37.78695147]
[1737643722564,31.0,254.16,253.98,37.78695147]
[1737643722565,37.78695147,254.08,253.98,37.78695147]
[1737643722784,37.78695147,254.12,254.02,37.78695147]
[1737643722971,3.9346,254.15,254.04,37.78695147]
[1737643723181,37.78695147,254.1,254.01,37.78695147]
[1737643723490,37.78695147,254.17,254.08,37.78695147]
[1737643723984,37.78695147,254.11,254.02,37.78695147]
[1737643724296,37.78695147,254.09,254.0,37.78695147]
[1737643724463,37.78695147,254.11,254.02,37.78695147]
[1737643724789,0.03,254.13,254.04,37.78695147]
[1737643725487,37.78695147,254.12,254.02,37.78695147]
[1737643725671,23.806884,254.13,253.96,37.78695147]
[1737643725672,37.78695147,254.06,253.96,37.78695147]
[1737643725869,37.78695147,254.02,253.92,37.78695147]
[1737643726066,37.78695147,254.08,253.96,37.78695147]
[1737643726270,37.78695147,254.1,254.0,37.78695147]
[1737643726473,30.03,254.13,253.89,37.78695147]
[1737643726675,23.776884,254.08,253.83,9.8491]
[1737643726980,20.0,254.05,253.83,9.8491]
[1737643727487,37.78695147,254.12,254.01,37.78695147]
[1737643727876,0.03,254.13,254.05,37.78695147]
[1737643728079,0.03,254.13,254.03,37.78695147]
[1737643728271,37.78695147,254.12,254.03,37.78695147]
[1737643728587,37.78695147,254.1,254.01,37.78695147]
[1737643728768,37.78695147,254.08,253.98,37.78695147]
[1737643729466,37.78695147,254.1,254.0,37.78695147]
[1737643729976,0.03,254.13,254.06,37.78695147]
[1737643730172,0.03,254.13,254.04,37.78695147]
[1737643730375,37.78695147,254.12,254.01,37.78695147]
[1737643730574,37.78695147,254.08,253.99,37.78695147]
[1737643730781,37.78695147,254.1,253.99,37.78695147]
[1737643731277,0.03,254.13,254.05,37.78695147]
[1737643731678,0.03,254.13,253.93,9.8451]
[1737643731896,0.03,254.13,254.05,37.78695147]
[1737643732299,37.78695147,254.11,254.01,37.78695147]
[1737643732599,37.81695147,254.13,254.03,37.78695147]
[1737643732808,37.78695147,254.07,253.97,37.78695147]
[1737643732974,37.78695147,254.1,253.99,37.78695147]
[1737643733182,37.78695147,254.06,253.95,37.78695147]
[1737643733375,37.78695147,254.12,254.01,37.78695147]
[1737643733608,0.03,254.13,253.94,3.9379]
[1737643733609,0.03,254.13,253.96,23.776884]
[1737643733906,0.03,254.13,254.1,37.78695147]
[1737643734319,0.03,254.13,254.08,37.78695147]
[1737643734673,0.03,254.13,254.06,37.78695147]
[1737643734877,0.03,254.13,254.08,37.78695147]
[1737643736307,0.03,254.13,254.06,13.776]
[1737643736499,0.03,254.13,254.12,37.78695147]
[1737643737010,0.03,254.13,254.12,41.72205147]
[1737643737189,0.03,254.13,254.08,37.78695147]
[1737643737914,0.03,254.13,254.06,37.78695147]
[1737643738082,37.81695147,254.13,254.02,37.78695147]
[1737643738283,37.81695147,254.13,254.02,41.72355147]
[1737643738501,0.03,254.13,254.04,37.78695147]
[1737643738679,0.03,254.13,254.08,37.78695147]
[1737643738884,0.03,254.13,254.11,37.78695147]
[1737643739187,0.03,254.13,254.09,37.78695147]
[1737643739406,0.03,254.13,254.05,37.78695147]
[1737643739778,0.03,254.13,254.09,37.78695147]
[1737643740421,0.03,254.13,254.07,37.78695147]
[1737643740587,0.03,254.13,254.05,37.78695147]
[1737643741090,0.03,254.13,254.07,37.78695147]
[1737643741497,37.78695147,254.11,254.03,37.78695147]
[1737643741678,37.78695147,254.11,254.02,41.72355147]
[1737643742085,0.03,254.13,254.06,37.78695147]
[1737643742400,0.03,254.13,254.08,37.78695147]
[1737643742575,0.03,254.13,254.06,37.78695147]
[1737643742780,0.03,254.13,254.04,37.78695147]
[1737643743182,0.03,254.13,254.07,37.78695147]
[1737643743580,37.78695147,254.11,254.01,37.78695147]
[1737643743888,37.78695147,254.09,253.99,37.78695147]
[1737643744417,37.78695147,254.11,253.99,37.78695147]
[1737643744589,37.78695147,254.11,254.01,37.78695147]
[1737643744904,0.03,254.13,253.98,13.7805]
[1737643744905,0.03,254.13,254.05,37.78695147]
[1737643745108,37.81695147,254.13,254.04,3.9363]
[1737643745316,0.03,254.13,254.07,37.78695147]
[1737643745505,0.03,254.13,254.05,37.78695147]
[1737643746106,37.78695147,254.11,254.01,37.78695147]
[1737643746310,37.78695147,254.08,253.98,37.78695147]
[1737643746492,37.78695147,254.02,253.92,41.72515147]
[1737643746818,37.78695147,254.04,253.94,37.78695147]
[1737643746995,37.78695147,254.1,253.98,37.78695147]
[1737643747310,37.78695147,254.12,254.02,37.78695147]
[1737643747508,0.03,254.13,254.04,37.78695147]
[1737643747711,37.78695147,254.08,254.0,37.78695147]
[1737643748015,37.78695147,254.12,254.02,37.78695147]
[1737643748308,37.78695147,254.1,254.0,37.78695147]
[1737643748809,37.78695147,254.06,253.96,37.78695147]
[1737643749108,37.78695147,254.02,253.93,3.938]
[1737643749410,37.78695147,253.96,253.86,37.78695147]
[1737643749607,20.0,253.99,253.85,3.9393]
[1737643749811,37.78695147,253.93,253.83,41.78955147]
[1737643750110,37.78695147,253.87,253.83,0.063]
[1737643750618,37.78695147,253.86,253.83,0.063]
[1737643750912,37.78695147,253.93,253.83,41.78945147]
[1737643751317,37.78695147,253.95,253.85,37.78695147]
[1737643751497,37.78695147,253.91,253.83,41.78945147]
[1737643751704,37.78695147,253.95,253.85,37.78695147]
[1737643752007,6.4377,253.96,253.87,37.78695147]
[1737643752726,1.5168,254.08,253.94,37.78695147]
[1737643752892,37.78695147,254.11,254.02,37.78695147]
[1737643753106,37.81695147,254.13,254.03,3.9365]
[1737643753308,0.03,254.13,254.04,37.78695147]
[1737643753613,37.81695147,254.13,254.04,37.78695147]
[1737643753924,37.81695147,254.13,254.03,13.7778]
[1737643754124,37.78695147,254.24,254.11,37.78695147]
[1737643754331,37.78695147,254.24,254.15,37.78695147]
[1737643754526,1.56950715,254.43,254.15,37.78695147]
[1737643754527,37.78695147,254.26,254.15,37.78695147]
[1737643754724,37.78695147,254.24,254.13,37.78695147]
[1737643754932,37.78695147,254.24,254.15,37.78695147]
[1737643755339,37.78695147,254.22,254.11,37.78695147]
[1737643755628,37.78695147,254.19,254.09,37.78695147]
[1737643756123,37.78695147,254.19,253.94,3.9379]
[1737643756124,20.0,254.19,253.94,3.9379]
[1737643756426,20.0,254.19,253.94,13.7826]
[1737643756636,2.33571622,254.21,253.98,1.0]
[1737643756815,2.33571622,254.21,253.94,13.7826]
[1737643756816,2.33571622,254.21,254.02,1.0]
[1737643757024,2.33571622,254.21,253.97,20.0]
[1737643757025,2.33571622,254.21,254.09,23.776884]
[1737643757206,2.33571622,254.2,254.16,37.78695147]
[1737643757406,2.33571622,254.2,254.14,37.78695147]
[1737643758331,2.33571622,254.2,254.16,37.78695147]
[1737643758928,2.33571622,254.25,254.18,37.78695147]
[1737643759134,37.78695147,254.24,254.15,3.9345]
[1737643759313,37.78695147,254.2,254.1,37.78695147]
[1737643759629,37.78695147,254.2,254.05,9.8403]
[1737643759630,37.78695147,254.16,254.06,3.936]
[1737643759831,37.78695147,254.15,254.06,3.936]
[1737643760038,37.78695147,254.17,254.06,41.72295147]
[1737643760404,37.78695147,254.2,254.08,37.78695147]
[1737643760717,37.78695147,254.2,254.06,3.936]
[1737643760718,37.78695147,254.18,254.06,41.72295147]
[1737643761122,37.78695147,254.18,254.08,37.78695147]
[1737643761319,37.78695147,254.14,254.04,37.78695147]
[1737643762231,37.78695147,254.12,254.04,0.063]
[1737643762631,37.78695147,254.06,254.04,0.063]
[1737643763715,37.78695147,254.06,253.86,3.9391]
[1737643763716,20.0,254.02,253.86,3.9391]
[1737643763937,37.78695147,253.96,253.86,41.72605147]
[1737643764239,37.78695147,253.96,253.86,3.9391]
[1737643764434,37.78695147,253.9,253.83,0.063]
[1737643764727,37.78695147,253.84,253.83,0.063]
[1737643765433,30.0,253.82,253.65,4.0054]
[1737643765638,20.0,253.79,253.65,0.063]
[1737643765814,37.78695147,253.82,253.72,37.78695147]
[1737643766017,2.34184211,253.84,253.74,37.78695147]
[1737643766210,40.12879358,253.84,253.74,37.78695147]
[1737643766411,37.78695147,253.82,253.72,37.78695147]
[1737643766632,20.0,253.81,253.66,3.9422]
[1737643766839,37.78695147,253.74,253.66,3.9422]
[1737643767132,37.78695147,253.76,253.66,41.72915147]
[1737643767335,37.78695147,253.82,253.72,37.78695147]
[1737643767534,37.78695147,253.8,253.7,37.78695147]
[1737643767736,37.78695147,253.74,253.66,3.9422]
[1737643767938,30.0,253.74,253.65,0.063]
[1737643768111,37.78695147,253.67,253.65,0.063]
[1737643768315,37.78695147,253.71,253.65,0.063]
[1737643768523,37.78695147,253.69,253.65,0.063]
[1737643768815,37.78695147,253.71,253.65,0.063]
[1737643769238,37.78695147,253.77,253.67,37.78695147]
[1737643769415,37.78695147,253.81,253.71,37.78695147]
[1737643769739,69.33155147,253.89,253.66,3.9422]
[1737643769740,37.78695147,253.79,253.69,37.78695147]
[1737643769929,37.78695147,253.77,253.67,37.78695147]
[1737643770247,37.78695147,253.68,253.65,0.063]
[1737643770828,37.78695147,253.7,253.65,0.063]
[1737643771241,37.78695147,253.74,253.65,41.79225147]
[1737643771544,37.78695147,253.76,253.65,41.79225147]
[1737643771863,37.78695147,253.7,253.65,0.063]
[1737643772145,37.78695147,253.71,253.65,0.063]
[1737643772324,6.3224,253.72,253.65,0.063]
[1737643772325,37.78695147,253.69,253.65,0.063]
[1737643772715,37.78695147,253.67,253.65,0.063]
[1737643774436,41.72905147,253.67,253.65,0.063]
[1737643774815,41.72905147,253.67,253.43,3.9458]
[1737643774816,51.0,253.61,253.43,3.9458]
[1737643775016,37.78695147,253.55,253.44,37.78695147]
[1737643775224,37.78695147,253.62,253.52,37.78695147]
[1737643775423,37.78695147,253.6,253.5,37.78695147]
[1737643775637,37.78695147,253.65,253.47,23.776884]
[1737643775840,6.3224,253.72,253.57,37.78695147]
[1737643775841,27.78695147,253.67,253.57,37.78695147]
[1737643776038,37.78695147,253.67,253.58,37.78695147]
[1737643776458,37.78695147,253.69,253.6,37.78695147]
[1737643776663,37.78695147,253.73,253.64,37.78695147]
[1737643776871,37.78695147,253.69,253.58,37.78695147]
[1737643777170,37.78695147,253.69,253.6,37.78695147]
[1737643777373,37.78695147,253.66,253.56,37.78695147]
[1737643777668,37.78695147,253.68,253.56,37.78695147]
[1737643778169,37.78695147,253.66,253.56,37.78695147]
[1737643778664,2.5102,253.78,253.51,13.8061]
[1737643778665,37.78695147,253.72,253.6,37.78695147]
[1737643778855,37.78695147,253.74,253.65,37.78695147]
[1737643779029,37.78695147,253.77,253.65,37.78695147]
[1737643779231,37.78695147,253.77,253.67,37.78695147]
[1737643779429,37.78695147,253.77,253.68,13.7968]
[1737643779959,37.78695147,253.77,253.68,3.9419]
[1737643780157,37.78695147,253.73,253.66,3.9422]
[1737643780368,37.78695147,253.75,253.66,3.9422]
[1737643780681,37.78695147,253.77,253.66,13.7979]
[1737643780857,37.78695147,253.75,253.66,3.9422]
[1737643781055,37.78695147,253.77,253.67,37.78695147]
[1737643781273,37.78695147,253.79,253.67,37.78695147]
[1737643781572,37.78695147,253.75,253.64,3.9425]
[1737643781765,37.78695147,253.77,253.66,23.776884]
[1737643781948,37.78695147,253.77,253.67,37.78695147]
[1737643782150,37.78695147,253.83,253.71,37.78695147]
[1737643782553,37.78695147,253.83,253.73,37.78695147]
[1737643782747,6.4875,253.89,253.73,37.78695147]
[1737643782748,37.78695147,253.85,253.73,37.78695147]
[1737643782947,37.78695147,253.83,253.73,37.78695147]
[1737643783350,37.78695147,253.81,253.7,37.78695147]
[1737643783564,37.78695147,253.81,253.71,3.9415]
[1737643783766,37.78695147,253.81,253.72,37.78695147]
[1737643783981,37.78695147,253.83,253.72,37.78695147]
[1737643784276,37.78695147,253.83,253.71,3.9415]
[1737643784277,37.78695147,253.78,253.71,3.9415]
[1737643784651,37.78695147,253.8,253.71,3.9415]
[1737643784846,37.78695147,253.78,253.68,37.78695147]
[1737643785079,37.78695147,253.78,253.69,3.9417]
[1737643785483,37.78695147,253.78,253.68,37.78695147]
[1737643786180,37.78695147,253.8,253.68,37.78695147]
[1737643786485,37.78695147,253.82,253.72,37.78695147]
[1737643787178,37.78695147,253.82,253.7,37.78695147]
[1737643787556,37.78695147,253.82,253.72,37.78695147]
[1737643788065,0.03,253.83,253.74,37.78695147]
[1737643788250,0.03,253.83,253.67,23.776884]
[1737643788251,0.03,253.83,253.76,37.78695147]
[1737643789180,0.03,253.83,253.8,37.78695147]
[1737643789491,0.03,253.83,253.78,37.78695147]
[1737643789648,0.03,253.83,253.79,3.9402]
[1737643789849,0.03,253.83,253.74,37.78695147]
[1737643790594,0.03,253.83,253.72,53.55245247]
[1737643790885,37.78695147,253.82,253.72,37.78695147]
[1737643791384,37.78695147,253.8,253.68,41.72885147]
[1737643791574,37.78695147,253.78,253.68,41.72885147]
[1737643791764,37.78695147,253.8,253.7,37.78695147]
[1737643792659,37.78695147,253.78,253.68,41.72885147]
[1737643792865,0.03,253.83,253.72,37.78695147]
[1737643793081,37.78695147,253.82,253.71,37.78695147]
[1737643793377,37.78695147,253.8,253.69,37.78695147]
[1737643793584,37.78695147,253.78,253.7,3.9416]
[1737643793978,37.78695147,253.82,253.71,37.78695147]
[1737643794296,0.03,253.83,253.73,37.78695147]
[1737643794584,0.03,253.83,253.75,37.78695147]
[1737643794787,0.03,253.83,253.79,37.78695147]
[1737643794969,0.03,253.83,253.81,37.78695147]
[1737643795680,0.03,253.83,253.82,3.9397]
[1737643796373,37.78695147,253.94,253.82,3.9397]
[1737643796556,37.78695147,253.92,253.82,3.9397]
[1737643796952,37.78695147,253.94,253.83,37.78695147]
[1737643797773,37.78695147,253.94,253.84,3.9394]
[1737643797977,37.78695147,253.92,253.84,3.9394]
[1737643798352,37.78695147,253.92,253.81,37.78695147]
[1737643798655,37.78695147,253.86,253.77,37.78695147]
[1737643798860,37.78695147,253.88,253.77,37.78695147]
[1737643799060,37.78695147,253.88,253.79,37.78695147]
[1737643799281,37.78695147,253.9,253.79,37.78695147]
[1737643799951,0.03,253.92,253.81,37.78695147]
[1737643800158,37.78695147,253.87,253.76,3.9407]
[1737643800558,37.78695147,253.89,253.79,37.78695147]
[1737643800767,0.03,253.92,253.83,37.78695147]
[1737643800949,0.03,253.92,253.77,23.776884]
[1737643800950,0.03,253.92,253.85,37.78695147]
[1737643801150,0.03,253.92,253.86,23.776884]
[1737643801357,0.03,253.92,253.91,37.78695147]
[1737643801784,0.03,253.92,253.91,41.72535147]
[1737643802158,37.78695147,254.07,253.91,52.57135147]
[1737643802371,37.78695147,254.07,253.96,37.78695147]
[1737643802574,0.03,254.09,254.0,37.78695147]
[1737643802758,37.78695147,254.07,253.97,37.78695147]
[1737643803079,37.78695147,254.07,253.91,13.7844]
[1737643803080,0.03,254.09,254.03,37.78695147]
[1737643803472,0.03,254.09,254.01,37.78695147]
[1737643803855,0.03,254.09,254.01,41.72365147]
[1737643804261,37.78695147,254.05,253.94,37.78695147]
[1737643804490,37.78695147,253.97,253.88,37.78695147]
[1737643804780,37.78695147,253.99,253.88,37.78695147]
[1737643804979,37.78695147,254.07,253.96,37.78695147]
[1737643805181,37.78695147,254.07,253.84,20.0]
[1737643805182,0.03,254.09,254.03,37.78695147]
[1737643805691,0.03,254.09,254.02,37.78695147]
[1737643805889,0.03,254.09,254.06,37.78695147]
[1737643806190,0.03,254.09,254.08,61.56383547]
[1737643806360,0.03,254.09,254.08,37.78695147]
[1737643806558,0.03,254.09,254.08,61.56383547]
[1737643807157,43.89255147,254.28,254.08,61.56383547]
[1737643807387,39.41645147,254.32,254.19,37.78695147]
[1737643807586,37.78695147,254.3,254.19,37.78695147]
[1737643808089,39.41645147,254.32,254.19,41.72095147]
[1737643808259,37.78695147,254.32,254.19,41.72095147]
[1737643808462,44.41615147,254.36,254.19,41.72095147]
[1737643808691,0.03,254.35,254.19,41.72095147]
[1737643808861,0.03,254.35,254.2,23.776884]
[1737643809065,0.03,254.35,254.26,37.78695147]
[1737643809371,37.78695147,254.33,254.22,37.78695147]
[1737643809580,37.78695147,254.33,254.24,37.78695147]
[1737643809770,37.78695147,254.33,254.22,37.78695147]
[1737643809978,37.78695147,254.31,254.2,37.78695147]
[1737643810374,37.78695147,254.29,254.2,37.78695147]
[1737643810677,37.78695147,254.25,254.15,37.78695147]
[1737643810881,37.78695147,254.25,254.06,3.936]
[1737643810882,37.78695147,254.25,254.13,37.78695147]
[1737643811082,37.78695147,254.25,254.15,37.78695147]
[1737643811462,37.78695147,254.28,254.17,37.78695147]
[1737643811908,3.9325,254.29,254.17,37.78695147]
[1737643812102,41.71935147,254.3,254.19,37.78695147]
[1737643812400,44.23835147,254.36,254.25,37.78695147]
[1737643812567,3.9616,254.35,254.25,37.78695147]
[1737643812766,0.03,254.35,254.25,37.78695147]
[1737643813373,37.78695147,254.34,254.23,37.78695147]
[1737643813685,0.03,254.33,254.23,37.78695147]
[1737643813881,37.78695147,254.3,254.19,37.78695147]
[1737643814071,3.9322,254.31,254.21,37.78695147]
[1737643814271,37.78695147,254.26,254.17,37.78695147]
[1737643814472,3.9322,254.31,254.15,15.742477]
[1737643814473,37.78695147,254.24,254.15,15.742477]
[1737643814671,0.03,254.33,254.24,23.776884]
[1737643815790,0.03,254.33,254.32,37.78695147]
[1737643816006,0.03,254.33,254.32,41.71895147]
[1737643816172,0.03,254.33,254.32,65.49583547]
[1737643816602,0.03,254.33,254.32,37.78695147]
[1737643816914,0.03,254.33,254.28,37.78695147]
[1737643817074,0.03,254.33,254.24,37.78695147]
[1737643817279,0.03,254.33,254.26,37.78695147]
[1737643817486,0.03,254.33,254.24,37.78695147]
[1737643817791,37.78695147,254.27,254.16,37.78695147]
[1737643817999,37.78695147,254.25,254.14,53.52309547]
[1737643818293,37.78695147,254.23,254.14,15.736144]
[1737643818494,20.0,254.16,254.14,15.736144]
[1737643818788,37.78695147,254.15,254.0,37.78695147]
[1737643818995,37.78695147,254.15,254.02,37.78695147]
[1737643819196,37.78695147,254.15,254.04,37.78695147]
[1737643819572,37.78695147,254.15,253.94,37.78695147]
[1737643819573,37.78695147,254.05,253.94,37.78695147]
[1737643819772,37.78695147,254.01,253.91,0.063]
[1737643819989,44.15195147,254.07,253.96,37.78695147]
[1737643820378,37.78695147,254.01,253.91,0.063]
[1737643820686,37.78695147,253.97,253.91,0.063]
[1737643820874,37.78695147,253.97,253.95,0.063]
[1737643821196,37.78695147,253.99,253.95,0.063]
[1737643821495,37.78695147,254.05,253.95,37.84995147]
[1737643822194,37.78695147,254.03,253.95,0.063]
[1737643822406,37.78695147,254.01,253.95,0.063]
[1737643822609,37.78695147,254.01,253.91,37.84995147]
[1737643822610,20.0,253.93,253.91,0.063]
[1737643822908,37.78695147,253.92,253.91,0.063]
[1737643823592,37.78695147,254.09,253.92,3.9382]
[1737643823771,37.78695147,254.11,254.01,37.78695147]
[1737643823972,37.78695147,254.11,254.01,41.72365147]
[1737643824182,37.78695147,254.15,254.03,37.78695147]
[1737643824393,37.78695147,254.11,254.01,37.78695147]
[1737643824579,37.78695147,254.05,253.95,37.78695147]
[1737643824778,37.78695147,254.05,253.93,23.45201635]
[1737643824779,37.78695147,254.08,253.97,37.78695147]
[1737643825508,37.78695147,254.06,253.95,37.78695147]
[1737643825680,37.78695147,254.08,253.99,0.063]
[1737643825878,37.78695147,254.06,253.99,0.063]
[1737643826082,37.78695147,254.03,253.99,0.063]
[1737643826388,37.78695147,254.08,253.99,0.063]
[1737643826885,37.78695147,254.02,253.99,0.063]
[1737643827091,37.78695147,254.04,253.99,0.063]
[1737643827489,1.0,254.1,253.99,0.063]
[1737643827490,37.78695147,254.06,253.99,0.063]
[1737643828590,67.78695147,254.15,253.99,0.063]
[1737643828591,37.78695147,254.02,253.99,0.063]
[1737643828899,37.78695147,254.0,253.99,0.063]
[1737643829590,37.78695147,254.02,253.99,0.063]
[1737643829797,38.78695147,254.0,253.99,0.063]
[1737643829999,57.78695147,254.0,253.99,0.063]
[1737643831883,37.78695147,254.04,253.99,0.063]
[1737643832289,37.78695147,254.07,254.01,1.0]
[1737643832498,37.78695147,254.09,254.0,1.0]
[1737643832683,37.78695147,254.09,254.02,1.0]
[1737643832881,37.78695147,254.13,254.04,1.0]
[1737643833392,37.78695147,254.11,254.05,1.0]
[1737643833791,37.78695147,254.07,253.99,0.063]
[1737643834012,37.78695147,254.05,253.99,0.063]
[1737643834187,37.78695147,254.07,254.0,1.0]
[1737643834491,37.78695147,254.09,254.01,1.0]
[1737643834699,37.78695147,254.07,254.01,1.0]
[1737643834879,3.935,254.13,253.99,0.063]
[1737643834880,20.0,254.02,253.99,0.063]
[1737643835406,37.78695147,254.01,253.99,0.063]
[1737643835913,37.78695147,254.05,253.99,0.063]
[1737643836097,20.0,254.02,253.99,0.063]
[1737643836275,20.0,254.02,254.0,1.0]
[1737643836481,37.78695147,254.07,254.0,1.0]
[1737643836697,37.78695147,254.07,254.02,1.0]
[1737643837081,37.78695147,254.07,253.99,0.063]
[1737643837082,37.78695147,254.03,253.99,0.063]
[1737643837598,37.78695147,254.1,254.0,1.0]
[1737643837903,37.78695147,254.1,254.04,1.0]
[1737643838101,37.78695147,254.1,254.09,1.0]
[1737643838403,37.78695147,254.2,254.15,1.0]
[1737643838612,13.7653,254.26,254.11,1.0]
[1737643838779,13.7653,254.26,254.15,1.0]
[1737643839111,13.7653,254.26,254.13,1.0]
[1737643839283,13.7653,254.26,254.07,1.0]
[1737643839284,13.7653,254.26,254.15,1.0]
[1737643839605,37.78695147,254.2,254.15,1.0]
[1737643839822,37.78695147,254.2,254.16,1.0]
[1737643840188,37.78695147,254.18,254.1,1.0]
[1737643840384,37.78695147,254.15,254.09,1.0]
[1737643840602,37.78695147,254.15,254.11,1.0]
[1737643840791,37.78695147,254.17,254.15,1.0]
[1737643841096,37.78695147,254.22,254.17,1.0]
[1737643841482,3.9328,254.27,254.09,1.0]
[1737643841483,37.78695147,254.19,254.09,1.0]
[1737643841685,37.78695147,254.14,254.1,1.0]
[1737643841888,37.78695147,254.14,254.07,1.0]
[1737643842103,37.78695147,254.12,254.06,1.0]
[1737643842323,41.72245147,254.1,254.06,1.0]
[1737643842624,37.78695147,254.12,254.07,1.0]
[1737643842785,41.72215147,254.12,254.07,1.0]
[1737643842991,37.78695147,254.12,254.1,1.0]
[1737643843187,41.72185147,254.14,254.1,1.0]
[1737643843401,41.72145147,254.16,254.11,1.0]
[1737643843626,37.78695147,254.14,254.07,1.0]
[1737643843923,37.78695147,254.08,254.05,1.0]
[1737643844396,41.72275147,254.08,254.05,1.0]
[1737643844597,41.72275147,254.08,254.04,1.0]
[1737643844915,41.72275147,254.08,254.02,1.0]
[1737643845225,41.72275147,254.08,253.99,1.063]
[1737643845226,20.0,254.05,253.99,1.063]
[1737643845427,37.78695147,254.07,254.03,1.0]
[1737643845717,20.0,254.02,253.99,0.063]
[1737643846221,37.78695147,254.0,253.99,0.063]
[1737643846520,20.0,254.02,253.99,0.063]
[1737643846521,3.9368,254.01,253.99,0.063]
[1737643846681,37.78695147,254.0,253.99,0.063]
[1737643847184,37.78695147,254.02,254.0,1.0]
[1737643847383,37.78695147,254.02,253.99,0.063]
[1737643847384,3.9368,254.01,253.99,0.063]
[1737643847585,37.78695147,254.04,254.0,1.0]
[1737643847785,37.78695147,254.07,254.04,1.0]
[1737643848004,20.0,254.02,253.99,0.063]
[1737643848391,20.0,254.02,254.0,1.0]
[1737643848590,23.9368,254.02,254.0,1.0]
[1737643848786,41.72325147,254.05,254.04,1.0]
[1737643849007,37.78695147,254.05,254.0,1.0]
[1737643849306,37.78695147,254.03,253.99,0.063]
[1737643849507,37.78695147,254.03,254.0,1.0]
[1737643849808,37.78695147,254.07,254.04,1.0]
[1737643850001,37.78695147,254.09,254.08,1.0]
[1737643850201,37.78695147,254.09,254.06,1.0]
[1737643850403,3.9354,254.1,254.04,1.0]
[1737643850600,3.9354,254.1,254.08,1.0]
[1737643850797,37.78695147,254.13,254.1,1.0]
[1737643851013,37.78695147,254.15,254.12,1.0]
[1737643851316,37.78695147,254.13,254.08,1.0]
[1737643851488,37.78695147,254.09,254.07,1.0]
[1737643851913,20.0,254.06,254.05,1.0]
[1737643852289,37.78695147,254.11,254.08,1.0]
[1737643852589,37.78695147,254.09,254.08,1.0]
[1737643852789,37.78695147,254.09,254.01,1.0]
[1737643853007,37.78695147,254.07,254.06,1.0]
[1737643853310,37.78695147,254.09,254.06,1.0]
[1737643853512,20.0,254.06,254.04,1.0]
[1737643853694,37.78695147,254.07,254.06,1.0]
[1737643853885,3.9354,254.1,254.08,1.0]
[1737643854086,37.78695147,254.13,254.12,1.0]
[1737643854291,37.78695147,254.13,254.01,37.78695147]
[1737643854292,37.78695147,254.17,254.14,1.0]
[1737643854497,37.78695147,254.17,254.16,1.0]
[1737643854705,41.72105147,254.19,254.16,1.0]
[1737643855106,37.78695147,254.17,254.14,1.0]
[1737643855321,37.78695147,254.15,254.08,1.0]
[1737643855628,37.78695147,254.1,254.06,1.0]
[1737643855793,2.32864118,254.17,254.06,1.0]
[1737643855794,37.78695147,254.08,254.06,1.0]
[1737643856187,37.78695147,254.1,254.08,1.0]
[1737643856415,37.78695147,254.1,253.99,0.063]
[1737643856416,6.3513,254.06,253.99,0.063]
[1737643856615,3.9356,254.09,253.99,0.063]
[1737643856912,3.9356,254.09,253.99,1.063]
[1737643857112,37.78695147,254.08,253.99,1.063]
[1737643857317,37.78695147,254.06,253.99,0.063]
[1737643857505,37.78695147,254.04,253.99,0.063]
[1737643857691,57.78695147,254.06,253.99,0.063]
[1737643857897,3.9356,254.09,254.01,1.0]
[1737643858093,37.78695147,254.08,253.99,0.063]
[1737643858413,37.78695147,254.04,253.99,0.063]
[1737643858614,37.78695147,254.02,253.99,0.063]
[1737643859402,37.78695147,254.04,253.99,0.063]
[1737643859593,37.78695147,254.04,253.99,1.063]
[1737643859790,37.78695147,254.07,254.06,1.0]
[1737643860001,37.78695147,254.13,254.05,1.0]
[1737643860422,43.7718,254.14,254.01,1.0]
[1737643860793,37.78695147,254.04,254.01,1.0]
[1737643861012,20.0,254.0,253.99,0.063]
[1737643861211,57.78695147,254.0,253.99,0.063]
[1737643861515,37.78695147,254.02,253.99,0.063]